bitfinex/quotes_SOLUSD_20250410
["timestamp","ask_amount","ask_price","bid_price","bid_amount"]
[1744278058127,18.64964886,114.59,114.57,10.6313855]
[1744278058914,27.37634886,114.59,114.56,12.1900855]
[1744278059735,27.37634886,114.59,114.55,8.7294]
[1744278059940,38.2920575,114.59,114.54,10.6313855]
[1744278060438,38.2920575,114.59,114.53,19.3922855]
[1744278061036,38.2920575,114.59,114.54,10.6313855]
[1744278063825,38.2920575,114.59,114.53,0.03]
[1744278064232,38.7920575,114.59,114.58,0.0001]
[1744278064629,18.933972,114.55,114.53,0.03]
[1744278064828,29.5653575,114.55,114.53,0.03]
[1744278065039,10.6313855,114.54,114.53,0.03]
[1744278065230,10.91570864,114.54,114.53,0.03]
[1744278066345,38.2958575,114.54,114.53,0.03]
[1744278067329,27.664472,114.54,114.53,0.03]
[1744278068327,18.933972,114.54,114.53,0.03]
[1744278068845,27.664472,114.54,114.53,0.03]
[1744278070156,18.64964886,114.54,114.53,0.03]
[1744278070358,18.933972,114.56,114.53,0.03]
[1744278070665,38.2944575,114.56,114.53,0.03]
[1744278071328,27.663072,114.56,114.53,0.03]
[1744278071524,8.1,114.59,114.54,10.6313855]
[1744278071760,18.64964886,114.58,114.54,10.6313855]
[1744278072064,38.00923436,114.58,114.53,0.03]
[1744278072275,18.64964886,114.56,114.53,0.03]
[1744278072659,0.28432314,114.55,114.53,0.03]
[1744278072859,10.91570864,114.54,114.53,0.03]
[1744278074068,38.2958575,114.54,114.53,0.03]
[1744278078363,27.664472,114.54,114.53,0.03]
[1744278079459,38.2958575,114.54,114.53,0.03]
[1744278083249,26.14216157,114.51,114.48,0.03]
[1744278083459,27.38394886,114.49,114.48,0.03]
[1744278083859,18.64964886,114.49,114.48,0.03]
[1744278085069,81.5,114.5,114.48,10.6613855]
[1744278085278,81.5,114.5,114.49,10.6313855]
[1744278087273,81.5,114.5,114.49,19.3656855]
[1744278087783,90.2336,114.5,114.48,10.6613855]
[1744278087985,18.64964886,114.49,114.48,0.03]
[1744278088473,18.64964886,114.49,114.48,10.6613855]
[1744278088682,18.64964886,114.49,114.48,0.03]
[1744278088882,81.5,114.5,114.48,10.6613855]
[1744278089063,100.14964886,114.5,114.49,10.6313855]
[1744278089381,81.5,114.5,114.49,10.6313855]
[1744278094073,81.5,114.5,114.48,10.6613855]
[1744278094271,81.5,114.5,114.48,0.03]
[1744278094478,90.2336,114.5,114.48,10.6613855]
[1744278094978,90.2336,114.5,114.48,0.03]
[1744278095691,90.2336,114.5,114.48,10.6613855]
[1744278095862,90.2336,114.5,114.48,0.03]
[1744278098987,18.64964886,114.49,114.48,0.03]
[1744278101286,27.38394886,114.49,114.48,0.03]
[1744278103872,90.2339,114.5,114.48,10.6613855]
[1744278104882,18.64964886,114.49,114.48,0.03]
[1744278106092,27.38394886,114.49,114.48,0.03]
[1744278106293,18.64964886,114.49,114.48,0.03]
[1744278107192,27.38394886,114.49,114.48,0.03]
[1744278108683,81.5,114.5,114.48,10.6613855]
[1744278109177,81.5,114.5,114.49,10.6313855]
[1744278109581,81.5,114.5,114.48,10.6613855]
[1744278109797,90.2336,114.5,114.48,10.6613855]
[1744278110492,81.5,114.5,114.48,10.6613855]
[1744278110695,8.7324,114.52,114.49,10.6313855]
[1744278112905,8.7324,114.52,114.48,0.03]
[1744278113203,8.7324,114.52,114.49,10.6313855]
[1744278113901,8.7324,114.52,114.48,0.03]
[1744278114080,8.7324,114.52,114.49,10.6313855]
[1744278114284,8.7324,114.52,114.48,10.6613855]
[1744278116042,18.64964886,114.51,114.48,10.6613855]
[1744278116320,18.64964886,114.51,114.48,0.03]
[1744278116486,18.64964886,114.51,114.48,10.6613855]
[1744278116687,27.38264886,114.51,114.48,10.6613855]
[1744278120215,27.38264886,114.51,114.48,0.03]
[1744278121320,27.38264886,114.51,114.48,10.6613855]
[1744278123100,38.01403436,114.51,114.48,0.03]
[1744278123600,27.38264886,114.51,114.48,0.03]
[1744278125614,81.5,114.5,114.48,0.03]
[1744278125915,69.809,114.55,114.48,0.03]
[1744278125916,81.5,114.53,114.49,12.1738855]
[1744278126102,81.5,114.53,114.52,10.6313855]
[1744278126304,81.5,114.56,114.49,1.5425]
[1744278126503,81.5,114.55,114.5,10.6313855]
[1744278126819,18.64964886,114.54,114.51,10.6313855]
[1744278127196,90.51462314,114.55,114.51,10.6313855]
[1744278127197,90.2303,114.55,114.51,10.6313855]
[1744278128595,81.5,114.55,114.52,10.6313855]
[1744278129820,81.5,114.55,114.51,8.7326]
[1744278130021,18.64964886,114.54,114.51,10.6313855]
[1744278130209,18.64964886,114.54,114.5,10.6313855]
[1744278130396,18.64964886,114.54,114.49,1.5425]
[1744278130397,81.5,114.55,114.49,10.2765]
[1744278130597,81.5,114.55,114.52,10.6313855]
[1744278131402,18.64964886,114.54,114.51,10.6313855]
[1744278131592,18.64964886,114.54,114.5,10.6313855]
[1744278131797,18.64964886,114.54,114.49,10.6313855]
[1744278131798,0.28432314,114.53,114.49,10.6313855]
[1744278132003,29.28103436,114.54,114.5,10.6313855]
[1744278132602,18.64964886,114.54,114.5,10.6313855]
[1744278132923,18.64964886,114.54,114.51,10.6313855]
[1744278133623,81.5,114.55,114.52,10.6313855]
[1744278133807,90.23,114.55,114.49,8.7343]
[1744278134010,18.64964886,114.54,114.49,8.7343]
[1744278134312,18.64964886,114.54,114.5,10.6313855]
[1744278135019,18.64964886,114.54,114.51,10.6313855]
[1744278135207,18.64964886,114.54,114.5,10.6313855]
[1744278135898,27.38094886,114.54,114.5,10.6313855]
[1744278136896,27.38094886,114.54,114.5,19.3647855]
[1744278137101,27.38094886,114.54,114.5,10.6313855]
[1744278137322,81.5,114.53,114.5,10.6313855]
[1744278137499,81.5,114.53,114.51,10.6313855]
[1744278140298,18.64964886,114.52,114.48,0.03]
[1744278140521,18.64964886,114.5,114.48,0.03]
[1744278140815,10.91570864,114.49,114.48,0.03]
[1744278141029,9.01862314,114.49,114.48,0.03]
[1744278141638,19.65000864,114.49,114.48,0.03]
[1744278141806,9.01862314,114.49,114.48,0.03]
[1744278142297,0.28432314,114.49,114.48,0.03]
[1744278142500,35.37354886,114.5,114.48,0.03]
[1744278142698,33.73124886,114.5,114.48,0.03]
[1744278143018,44.36263436,114.5,114.48,0.03]
[1744278143325,33.73124886,114.5,114.48,0.03]
[1744278144524,0.28432314,114.49,114.48,0.03]
[1744278146837,9.01862314,114.49,114.48,0.03]
[1744278149016,38.2996575,114.49,114.48,0.03]
[1744278149219,18.933972,114.48,114.47,0.03]
[1744278149410,29.5653575,114.48,114.47,0.03]
[1744278150421,29.5653575,114.48,114.35,13.6608379]
[1744278150422,26.0,114.45,114.35,13.6608379]
[1744278150629,18.64964886,114.43,114.4,10.6313855]
[1744278151439,18.64964886,114.43,114.41,10.6313855]
[1744278151621,18.64964886,114.43,114.39,8.7414]
[1744278151622,18.64964886,114.43,114.4,10.6313855]
[1744278152234,27.38854886,114.43,114.4,10.6313855]
[1744278153239,27.38854886,114.43,114.37,8.7435]
[1744278153833,27.38854886,114.43,114.39,10.6313855]
[1744278154035,18.64964886,114.43,114.4,10.6313855]
[1744278154224,18.64964886,114.43,114.41,10.6313855]
[1744278154630,18.64964886,114.43,114.4,10.6313855]
[1744278155433,0.28432314,114.42,114.38,8.7423]
[1744278155625,27.38904886,114.43,114.39,10.6313855]
[1744278156833,38.02043436,114.43,114.39,10.6313855]
[1744278157621,18.64964886,114.43,114.39,19.3731855]
[1744278161248,27.38854886,114.43,114.39,19.3731855]
[1744278161428,38.01993436,114.43,114.38,8.7424]
[1744278161629,38.01993436,114.43,114.38,19.3737855]
[1744278162147,27.38854886,114.43,114.39,10.6313855]
[1744278162347,27.38854886,114.43,114.39,19.3732855]
[1744278163650,81.5,114.42,114.39,19.3732855]
[1744278163836,81.5,114.42,114.41,10.6313855]
[1744278164038,81.5,114.45,114.41,10.6313855]
[1744278164228,81.5,114.45,114.42,10.6313855]
[1744278164648,81.5,114.45,114.43,10.6313855]
[1744278165645,81.5,114.45,114.44,10.6313855]
[1744278165844,81.5,114.45,114.44,19.3695855]
[1744278166849,81.5,114.45,114.44,10.6313855]
[1744278167051,81.5,114.45,114.43,19.3699855]
[1744278167224,81.5,114.45,114.44,10.6313855]
[1744278168446,81.5,114.45,114.44,19.3695855]
[1744278169033,81.5,114.44,114.38,9.9909]
[1744278169232,81.5,114.43,114.4,10.6313855]
[1744278169756,81.5,114.43,114.41,10.6313855]
[1744278170048,81.5,114.43,114.4,19.3721855]
[1744278170447,81.5,114.43,114.41,10.6313855]
[1744278172442,81.5,114.43,114.41,19.3717855]
[1744278173752,81.5,114.43,114.41,8.7404]
[1744278173936,81.5,114.43,114.41,19.3717855]
[1744278174537,81.5,114.43,114.42,10.6313855]
[1744278175348,81.5,114.47,114.42,10.6313855]
[1744278175633,18.71264886,114.48,114.44,10.6313855]
[1744278176651,27.44774886,114.48,114.45,10.6313855]
[1744278176857,81.5,114.47,114.45,10.6313855]
[1744278177033,81.5,114.47,114.44,19.3690855]
[1744278177229,81.5,114.47,114.41,26.0]
[1744278177434,81.5,114.47,114.44,10.6313855]
[1744278178339,81.5,114.47,114.41,26.0]
[1744278178546,81.5,114.47,114.45,10.6313855]
[1744278179459,81.5,114.47,114.44,10.6313855]
[1744278179760,90.236,114.47,114.43,10.6313855]
[1744278179955,100.8673855,114.47,114.42,8.7397]
[1744278180158,90.236,114.47,114.43,10.6313855]
[1744278180758,90.236,114.47,114.43,19.3702855]
[1744278181845,27.38634886,114.46,114.38,9.9909]
[1744278182040,81.5,114.45,114.41,10.6313855]
[1744278182852,18.64964886,114.44,114.38,9.9909]
[1744278183061,27.38784886,114.44,114.4,10.6313855]
[1744278183552,87.71496157,114.43,114.4,10.6313855]
[1744278183749,18.64964886,114.41,114.37,19.3748855]
[1744278183957,18.64964886,114.41,114.38,10.6313855]
[1744278184260,18.64964886,114.41,114.37,8.7435]
[1744278184455,18.64964886,114.41,114.38,10.6313855]
[1744278184759,18.64964886,114.41,114.38,19.3739855]
[1744278184959,81.5,114.42,114.38,19.3739855]
[1744278185165,81.5,114.42,114.39,10.6313855]
[1744278185836,81.5,114.42,114.4,10.6313855]
[1744278186039,81.5,114.42,114.41,10.6313855]
[1744278186443,81.5,114.42,114.4,10.6313855]
[1744278187062,81.5,114.42,114.4,8.7408]
[1744278187561,81.5,114.42,114.4,19.3721855]
[1744278187769,81.5,114.42,114.41,10.6313855]
[1744278187937,81.5,114.42,114.4,8.7408]
[1744278187938,100.14964886,114.42,114.4,10.6313855]
[1744278188143,81.5,114.42,114.4,10.6313855]
[1744278189062,81.5,114.42,114.4,19.3719855]
[1744278189454,81.5,114.45,114.41,10.6313855]
[1744278190240,81.5,114.45,114.4,8.7406]
[1744278190444,81.5,114.45,114.42,10.6313855]
[1744278190651,81.5,114.45,114.43,10.6313855]
[1744278191241,81.5,114.45,114.42,10.6313855]
[1744278191445,90.2374,114.45,114.42,10.6313855]
[1744278191856,90.2374,114.45,114.41,10.6313855]
[1744278192042,100.14964886,114.44,114.39,8.742]
[1744278192247,110.78103436,114.44,114.39,19.3733855]
[1744278193157,18.64964886,114.42,114.38,19.3738855]
[1744278193764,18.64964886,114.42,114.38,8.7425]
[1744278193967,27.38954886,114.42,114.38,19.3738855]
[1744278195372,18.64964886,114.4,114.36,19.3756855]
[1744278196772,8.741,114.41,114.37,10.6313855]
[1744278196958,19.3723855,114.41,114.37,10.6313855]
[1744278197365,18.64964886,114.4,114.37,10.6313855]
[1744278197574,29.28103436,114.4,114.35,0.03]
[1744278197779,81.5,114.39,114.35,19.4063855]
[1744278198150,81.5,114.39,114.36,10.6313855]
[1744278198870,18.64964886,114.38,114.35,19.4063855]
[1744278199058,81.5,114.39,114.36,10.6313855]
[1744278199262,81.5,114.39,114.37,10.6313855]
[1744278199567,81.5,114.39,114.36,10.6313855]
[1744278200446,81.5,114.39,114.36,19.3754855]
[1744278200646,101.66744886,114.38,114.35,0.03]
[1744278200863,100.14964886,114.37,114.35,0.03]
[1744278203273,81.5,114.37,114.35,0.03]
[1744278203461,81.5,114.37,114.35,10.6613855]
[1744278203662,81.5,114.37,114.36,10.6313855]
[1744278204053,81.5,114.37,114.35,0.03]
[1744278204352,81.5,114.37,114.35,10.6613855]
[1744278204775,81.5,114.37,114.36,8.7443]
[1744278205075,6.4039,114.39,114.36,19.3756855]
[1744278206062,81.5,114.4,114.37,10.6313855]
[1744278206876,81.5,114.4,114.37,19.3745855]
[1744278207174,81.5,114.4,114.37,8.7432]
[1744278208671,81.5,114.4,114.38,10.6313855]
[1744278208882,81.5,114.4,114.38,19.3736855]
[1744278210180,81.5,114.4,114.38,8.7423]
[1744278210370,81.5,114.4,114.36,19.3756855]
[1744278211088,81.5,114.4,114.35,8.775]
[1744278211379,81.5,114.4,114.36,10.6313855]
[1744278211689,81.5,114.4,114.37,10.6313855]
[1744278212266,81.5,114.4,114.36,10.6313855]
[1744278212463,18.64964886,114.39,114.36,10.6313855]
[1744278212774,18.64964886,114.39,114.35,19.4063855]
[1744278213472,18.64964886,114.39,114.36,10.6313855]
[1744278213794,18.64964886,114.39,114.35,19.4063855]
[1744278217763,81.5,114.4,114.38,10.6313855]
[1744278218771,81.5,114.4,114.39,10.6313855]
[1744278218980,81.5,114.4,114.38,10.6313855]
[1744278219578,81.5,114.4,114.38,19.3733855]
[1744278219783,81.5,114.4,114.36,8.7443]
[1744278219984,81.5,114.4,114.36,19.3756855]
[1744278220693,81.5,114.4,114.36,8.7443]
[1744278220694,18.64964886,114.39,114.36,8.7443]
[1744278221899,20.18064886,114.39,114.35,8.7747]
[1744278222195,20.18064886,114.39,114.35,19.4060855]
[1744278223180,81.5,114.38,114.35,19.4060855]
[1744278223371,81.5,114.38,114.35,25.46499357]
[1744278224480,81.5,114.38,114.36,16.69029357]
[1744278225485,81.5,114.38,114.35,8.7747]
[1744278225681,81.5,114.38,114.35,25.46499357]
[1744278225883,81.5,114.38,114.35,8.7747]
[1744278226094,81.5,114.38,114.35,25.46499357]
[1744278227900,81.5,114.38,114.35,8.7747]
[1744278228099,81.5,114.38,114.35,25.46499357]
[1744278229994,81.5,114.38,114.35,0.03]
[1744278230382,81.5,114.38,114.35,8.775]
[1744278230582,81.5,114.38,114.35,25.46529357]
[1744278233502,81.5,114.38,114.36,16.69029357]
[1744278233900,81.5,114.38,114.35,25.46499357]
[1744278234415,81.5,114.38,114.36,16.69029357]
[1744278235497,81.5,114.38,114.36,25.43419357]
[1744278236719,81.5,114.38,114.36,8.7439]
[1744278238721,81.5,114.38,114.35,25.46489357]
[1744278239622,81.5,114.38,114.35,8.7746]
[1744278241409,81.5,114.38,114.35,25.46489357]
[1744278242610,81.5,114.38,114.37,16.69029357]
[1744278243009,81.5,114.38,114.35,8.7746]
[1744278243207,81.5,114.38,114.37,16.69029357]
[1744278243428,81.5,114.38,114.36,10.67804346]
[1744278243618,81.5,114.38,114.37,10.67804346]
[1744278244019,81.5,114.38,114.36,10.67804346]
[1744278245027,81.5,114.38,114.37,19.42154346]
[1744278245842,100.14964886,114.41,114.37,19.42154346]
[1744278246133,100.14964886,114.41,114.39,10.67804346]
[1744278247113,100.14964886,114.41,114.38,10.67804346]
[1744278247539,81.5,114.41,114.39,10.67804346]
[1744278248121,81.5,114.41,114.36,42.71217384]
[1744278248320,81.5,114.41,114.39,10.67804346]
[1744278248925,81.5,114.41,114.4,10.67804346]
[1744278249112,81.5,114.41,114.4,19.41924346]
[1744278249823,81.5,114.44,114.4,19.41924346]
[1744278250023,81.5,114.44,114.41,10.67804346]
[1744278250622,81.5,114.44,114.42,10.67804346]
[1744278251021,81.5,114.44,114.43,10.67804346]
[1744278251222,81.5,114.44,114.42,19.41724346]
[1744278252742,81.5,114.44,114.39,8.742]
[1744278252928,81.5,114.44,114.41,10.67804346]
[1744278253234,81.5,114.44,114.4,10.67804346]
[1744278253440,18.64964886,114.43,114.4,19.41884346]
[1744278253936,18.64964886,114.43,114.39,19.41974346]
[1744278255540,27.38854886,114.43,114.39,19.41974346]
[1744278256039,18.64964886,114.43,114.39,19.41974346]
[1744278256334,18.64964886,114.43,114.36,42.71217384]
[1744278256335,29.32769232,114.41,114.36,19.42194346]
[1744278256536,18.64964886,114.39,114.36,8.7439]
[1744278256919,18.64964886,114.39,114.36,19.42194346]
[1744278257546,18.64964886,114.39,114.36,8.7439]
[1744278258343,38.06969232,114.39,114.35,19.45304346]
[1744278258539,38.06969232,114.39,114.35,0.03]
[1744278261044,38.06969232,114.39,114.35,10.70804346]
[1744278261248,18.64964886,114.39,114.35,10.70804346]
[1744278262446,18.64964886,114.39,114.36,10.67804346]
[1744278262748,18.64964886,114.39,114.36,19.42224346]
[1744278264029,18.64964886,114.39,114.36,8.7442]
[1744278264230,10.67804346,114.38,114.35,0.03]
[1744278264469,18.64964886,114.37,114.35,0.03]
[1744278265932,0.28432314,114.38,114.35,0.03]
[1744278266127,18.64964886,114.37,114.35,0.03]
[1744278269255,100.14964886,114.37,114.35,0.03]
[1744278269954,106.30464886,114.37,114.35,0.03]
[1744278272438,115.04824886,114.37,114.35,0.03]
[1744278273057,106.30464886,114.37,114.35,0.03]
[1744278273455,115.04824886,114.37,114.35,0.03]
[1744278273955,100.14964886,114.36,114.35,0.03]
[1744278274460,108.89394886,114.36,114.35,0.03]
[1744278274876,100.14964886,114.36,114.35,0.03]
[1744278280577,109.178272,114.36,114.35,0.03]
[1744278280881,119.85631546,114.36,114.35,0.03]
[1744278281049,40.01401546,114.36,114.35,0.03]
[1744278281667,25.480072,114.35,114.34,0.03]
[1744278281844,36.15811546,114.35,114.34,0.03]
[1744278282380,40.51710868,114.35,114.34,0.03]
[1744278282960,36.15811546,114.35,114.34,0.03]
[1744278283271,44.90311546,114.35,114.34,0.03]
[1744278283570,34.225072,114.35,114.34,0.03]
[1744278284273,25.480072,114.35,114.34,0.03]
[1744278284667,25.33791043,114.35,114.34,0.03]
[1744278285274,25.480072,114.35,114.34,0.03]
[1744278288869,34.225072,114.35,114.34,0.03]
[1744278290074,18.933972,114.35,114.34,0.03]
[1744278293264,27.678972,114.35,114.34,0.03]
[1744278295676,18.933972,114.35,114.34,0.03]
[1744278296977,27.678972,114.35,114.34,0.03]
[1744278298188,18.933972,114.35,114.34,0.03]
[1744278298577,29.61201546,114.35,114.34,0.03]
[1744278298781,38.35701546,114.35,114.34,0.03]
[1744278301582,79.46621546,114.35,114.34,0.03]
[1744278302869,53.23621546,114.35,114.34,0.03]
[1744278303086,42.41601043,114.35,114.34,0.03]
[1744278303286,53.23621546,114.35,114.34,0.03]
[1744278303584,52.95189232,114.35,114.34,0.03]
[1744278303798,53.23621546,114.35,114.34,0.03]
[1744278304363,14.2825,114.38,114.34,0.03]
[1744278304675,38.07119232,114.37,114.34,0.03]
[1744278305190,0.28432314,114.36,114.34,0.03]
[1744278305363,29.32769232,114.37,114.34,0.03]
[1744278305557,18.64964886,114.37,114.34,0.03]
[1744278306979,0.28432314,114.36,114.34,0.03]
[1744278307280,29.61201546,114.35,114.34,0.03]
[1744278308284,38.35701546,114.35,114.34,0.03]
[1744278308878,29.61201546,114.35,114.34,0.03]
[1744278309182,38.35701546,114.35,114.34,0.03]
[1744278313682,19.7073666,114.35,114.34,0.03]
[1744278313889,38.35701546,114.35,114.34,0.03]
[1744278314764,27.39464886,114.35,114.34,0.03]
[1744278314970,27.678972,114.35,114.34,0.03]
[1744278315178,18.933972,114.35,114.34,0.03]
[1744278315590,38.35701546,114.35,114.34,0.03]
[1744278317486,19.7073666,114.35,114.34,0.03]
[1744278317672,38.35701546,114.35,114.34,0.03]
[1744278320590,27.678972,114.35,114.34,0.03]
[1744278320889,18.64964886,114.35,114.34,0.03]
[1744278322001,18.64964886,114.37,114.34,0.03]
[1744278322209,18.64964886,114.37,114.34,10.70804346]
[1744278323282,18.64964886,114.37,114.34,0.03]
[1744278323482,18.64964886,114.37,114.34,10.70804346]
[1744278323884,18.64964886,114.37,114.34,19.45364346]
[1744278325071,108.89324886,114.37,114.34,0.03]
[1744278325482,100.14964886,114.37,114.34,0.03]
[1744278326695,100.14964886,114.37,114.34,8.7757]
[1744278327408,100.14964886,114.37,114.34,0.03]
[1744278328498,108.89334886,114.37,114.34,0.03]
[1744278329894,119.57139232,114.37,114.34,0.03]
[1744278330396,108.89334886,114.37,114.34,0.03]
[1744278330797,81.5,114.36,114.34,0.03]
[1744278332595,81.5,114.36,114.34,10.70804346]
[1744278333087,81.5,114.36,114.35,10.67804346]
[1744278333495,81.5,114.36,114.34,0.03]
[1744278333496,81.5,114.36,114.34,10.70804346]
[1744278335192,81.5,114.36,114.34,19.45374346]
[1744278337502,81.5,114.36,114.34,8.7757]
[1744278337687,81.5,114.36,114.35,10.67804346]
[1744278339287,81.5,114.36,114.34,8.7757]
[1744278339489,81.5,114.36,114.35,10.67804346]
[1744278339897,81.563,114.4,114.35,10.67804346]
[1744278340095,81.563,114.4,114.37,10.67804346]
[1744278340706,81.563,114.4,114.37,19.42134346]
[1744278340906,81.563,114.4,114.39,10.67804346]
[1744278341792,81.563,114.4,114.39,8.742]
[1744278341991,81.563,114.4,114.39,19.42004346]
[1744278342204,81.563,114.4,114.39,8.742]
[1744278343601,81.563,114.4,114.39,10.67804346]
[1744278345510,0.063,114.4,114.39,10.67804346]
[1744278345694,0.063,114.4,114.39,19.42004346]
[1744278347508,0.063,114.4,114.39,8.742]
[1744278347685,0.063,114.4,114.39,10.67804346]
[1744278348008,0.063,114.4,114.38,8.7427]
[1744278348390,0.063,114.4,114.39,10.67804346]
[1744278348792,0.063,114.4,114.38,19.42074346]
[1744278349687,0.063,114.4,114.37,10.67804346]
[1744278350095,0.063,114.4,114.37,19.42114346]
[1744278350416,0.063,114.4,114.39,10.67804346]
[1744278351892,0.063,114.4,114.39,19.42004346]
[1744278353113,0.063,114.4,114.39,10.67804346]
[1744278353693,0.063,114.4,114.38,10.67804346]
[1744278353892,0.063,114.4,114.37,10.67804346]
[1744278354196,0.063,114.4,114.38,10.67804346]
[1744278355009,0.063,114.4,114.39,10.67804346]
[1744278355211,0.063,114.4,114.39,19.42004346]
[1744278360992,0.063,114.4,114.39,10.67804346]
[1744278361198,0.063,114.4,114.35,15.986]
[1744278361398,29.39069232,114.4,114.35,8.7448]
[1744278361621,29.39069232,114.4,114.35,19.42284346]
[1744278362101,10.67804346,114.39,114.34,0.03]
[1744278362295,18.71264886,114.4,114.34,10.70804346]
[1744278362296,29.32769232,114.38,114.34,10.70804346]
[1744278362515,29.32769232,114.38,114.34,0.03]
[1744278362702,10.67804346,114.37,114.34,0.03]
[1744278363018,19.42224346,114.37,114.34,0.03]
[1744278363214,29.32769232,114.36,114.34,0.03]
[1744278363609,111.11201546,114.35,114.34,0.03]
[1744278363802,100.14964886,114.35,114.34,0.03]
[1744278364199,81.5,114.35,114.34,0.03]
[1744278369513,108.89464886,114.35,114.34,0.03]
[1744278370319,100.14964886,114.35,114.34,0.03]
[1744278370623,81.5,114.35,114.34,0.03]
[1744278371125,81.5,114.35,114.34,16.72853403]
[1744278372007,81.5,114.35,114.34,0.03]
[1744278382622,81.5,114.35,114.34,16.72853403]
[1744278383027,108.89264886,114.38,114.34,16.72853403]
[1744278383223,108.89264886,114.38,114.35,16.69853403]
[1744278383420,100.14964886,114.38,114.35,16.69853403]
[1744278383614,81.5,114.38,114.36,16.69853403]
[1744278384131,81.5,114.38,114.37,16.69853403]
[1744278384632,81.5,114.38,114.37,25.44203403]
[1744278384941,0.063,114.4,114.37,25.44203403]
[1744278385130,0.063,114.4,114.39,16.69853403]
[1744278385312,0.063,114.41,114.4,16.69853403]
[1744278386530,0.063,114.41,114.4,25.43973403]
[1744278386749,0.063,114.45,114.41,1.57]
[1744278386953,0.063,114.45,114.44,16.69853403]
[1744278391837,0.063,114.45,114.39,8.14]
[1744278392029,18.71264886,114.45,114.41,16.69853403]
[1744278392727,18.64964886,114.43,114.39,8.7417]
[1744278392924,44.08758289,114.43,114.38,16.69853403]
[1744278393642,18.64964886,114.4,114.37,16.69853403]
[1744278394319,18.64964886,114.4,114.36,16.69853403]
[1744278394955,27.39104886,114.4,114.37,16.69853403]
[1744278395622,27.39104886,114.4,114.36,16.69853403]
[1744278396138,0.28432314,114.4,114.37,16.69853403]
[1744278397140,9.02562314,114.4,114.36,25.44263403]
[1744278397346,18.64964886,114.38,114.35,16.69853403]
[1744278398145,18.64964886,114.38,114.36,16.69853403]
[1744278398341,100.14964886,114.38,114.36,16.69853403]
[1744278399143,81.5,114.38,114.37,16.69853403]
[1744278401148,81.5,114.38,114.37,25.44203403]
[1744278402650,81.5,114.38,114.37,16.69853403]
[1744278403446,81.5,114.38,114.37,25.44203403]
[1744278404234,81.5,114.38,114.37,16.69853403]
[1744278405547,81.5,114.38,114.37,25.44203403]
[1744278410053,81.5,114.41,114.37,25.44203403]
[1744278410248,81.5,114.41,114.39,16.69853403]
[1744278410736,81.5,114.41,114.37,8.7435]
[1744278411238,81.5,114.41,114.38,16.69853403]
[1744278412256,81.5,114.41,114.38,25.44123403]
[1744278412565,81.5,114.41,114.39,16.69853403]
[1744278414045,81.5,114.41,114.38,8.7427]
[1744278414046,81.5,114.41,114.38,25.44123403]
[1744278416063,81.5,114.41,114.39,16.69853403]
[1744278416356,81.5,114.41,114.4,16.69853403]
[1744278416560,1.5515,114.43,114.4,16.69853403]
[1744278416762,10.2904,114.43,114.38,8.7427]
[1744278416944,10.2904,114.43,114.4,16.69853403]
[1744278420058,1.5515,114.43,114.4,16.69853403]
[1744278420568,1.5515,114.43,114.4,25.43963403]
[1744278420776,27.38824886,114.44,114.41,16.69853403]
[1744278420973,88.0218,114.45,114.42,16.69853403]
[1744278421552,96.7593,114.45,114.42,16.69853403]
[1744278423668,18.64964886,114.44,114.39,8.7417]
[1744278423859,18.64964886,114.42,114.38,25.44123403]
[1744278424051,100.14964886,114.42,114.38,25.44123403]
[1744278424448,81.5,114.41,114.37,8.7431]
[1744278424655,81.5,114.41,114.37,16.69853403]
[1744278424858,81.5,114.41,114.36,8.7439]
[1744278425166,18.64964886,114.4,114.37,16.69853403]
[1744278425372,35.95570003,114.4,114.35,19.42645117]